fUSD/lending_fUSD_20240229
["ID","MTS","AMOUNT","RATE_DAILY","PERIOD"]
[315897825,1709250639364,-500.0,0.00021917,2]
[315897826,1709250639374,-500.0,0.00021917,2]
[315897827,1709250639383,-500.0,0.00021917,2]
[315897828,1709250639393,-500.0,0.00021917,2]
[315897829,1709250639403,-500.0,0.00021917,2]
[315897830,1709250639413,-500.0,0.00021917,2]
[315897831,1709250639423,-500.0,0.00021917,2]
[315897832,1709250639432,-454.89576816,0.00021917,2]
[315897833,1709250639442,-500.0,0.00021917,2]
[315897834,1709250639451,-500.0,0.00021917,2]
[315897835,1709250639461,-500.0,0.00021917,2]
[315897836,1709250639471,-500.0,0.00021917,2]
[315897837,1709250639480,-500.0,0.00021917,2]
[315897838,1709250639489,-500.0,0.00021917,2]
[315897839,1709250639498,-500.0,0.00021917,2]
[315897840,1709250639507,-500.0,0.00021917,2]
[315897841,1709250639516,-500.0,0.00021917,2]
[315897842,1709250639526,-500.0,0.00021917,2]
[315897843,1709250639535,-500.0,0.00021917,2]
[315897844,1709250639544,-500.0,0.00021917,2]
[315897845,1709250639553,-500.0,0.00021917,2]
[315897846,1709250639562,-500.0,0.00021917,2]
[315897847,1709250639571,-500.0,0.00021917,2]
[315897848,1709250639581,-500.0,0.00021917,2]
[315897849,1709250639590,-500.0,0.00021917,2]
[315897850,1709250639601,-500.0,0.00021917,2]
[315897851,1709250639610,-500.0,0.00021917,2]
[315897852,1709250639619,-500.0,0.00021917,2]
[315897853,1709250639629,-500.0,0.00021917,2]
[315897854,1709250639638,-500.0,0.00021917,2]
[315897855,1709250639647,-500.0,0.00021917,2]
[315897856,1709250639657,-500.0,0.00021917,2]
[315897857,1709250639666,-607.98,0.00021917,2]
[315897858,1709250639675,-500.0,0.00021917,2]
[315897859,1709250639684,-500.0,0.00021917,2]
[315897860,1709250639693,-222.49197055,0.00021917,2]
[315897861,1709250639702,-612.37,0.00021917,2]
[315897862,1709250639712,-500.0,0.00021917,2]
[315897863,1709250639720,-500.0,0.00021917,2]
[315897864,1709250639730,-565.16,0.00021917,2]
[315897865,1709250639738,-637.73,0.00021917,2]
[315897866,1709250639748,-500.0,0.00021917,2]
[315897867,1709250639757,-538.21,0.00021917,2]
[315897868,1709250639766,-500.0,0.00021917,2]
[315897869,1709250639776,-656.42,0.00021917,2]
[315897870,1709250639785,-500.0,0.00021917,2]
[315897871,1709250639793,-632.47,0.00021917,2]
[315897872,1709250639803,-500.0,0.00021917,2]
[315897873,1709250639813,-500.0,0.00021917,2]
[315897874,1709250639823,-500.0,0.00021917,2]
[315897875,1709250639834,-583.41,0.00021917,2]
[315897876,1709250639846,-500.0,0.00021917,2]
[315897877,1709250639855,-500.0,0.00021917,2]
[315897878,1709250639864,-754.4,0.00021917,2]
[315897885,1709250640025,-500.0,0.00021917,2]
[315897886,1709250640041,-567.04,0.00021917,2]
[315897887,1709250640051,-500.0,0.00021917,2]
[315897888,1709250640060,-1666.89,0.00021917,2]
[315897889,1709250640070,-213.55434741,0.00021917,2]
[315897890,1709250640079,-732.15,0.00021917,2]
[315897891,1709250640090,-500.0,0.00021917,2]
[315897892,1709250640099,-500.0,0.00021917,2]
[315897893,1709250640109,-585.45,0.00021917,2]
[315897894,1709250640118,-500.0,0.00021917,2]
[315897895,1709250640131,-500.0,0.00021917,2]
[315897896,1709250640141,-500.0,0.00021917,2]
[315897897,1709250640151,-500.0,0.00021917,2]
[315897898,1709250640161,-646.67,0.00021917,2]
[315897899,1709250640171,-500.0,0.00021917,2]
[315897900,1709250640180,-500.0,0.00021917,2]
[315897901,1709250640189,-500.0,0.00021917,2]
[315897902,1709250640199,-500.0,0.00021917,2]
[315897903,1709250640209,-904.26,0.00021917,2]
[315897904,1709250640219,-500.0,0.00021917,2]
[315897905,1709250640228,-500.0,0.00021917,2]
[315897906,1709250640238,-500.0,0.00021917,2]
[315897907,1709250640248,-500.0,0.00021917,2]
[315897908,1709250640257,-500.0,0.00021917,2]
[315897909,1709250640267,-500.0,0.00021917,2]
[315897910,1709250640276,-574.51,0.00021917,2]
[315897911,1709250640286,-500.0,0.00021917,2]
[315897912,1709250640296,-500.0,0.00021917,2]
[315897913,1709250640305,-500.0,0.00021917,2]
[315897914,1709250640315,-500.0,0.00021917,2]
[315897915,1709250640326,-500.0,0.00021917,2]
[315897916,1709250640335,-500.0,0.00021917,2]
[315897917,1709250640346,-500.0,0.00021917,2]
[315897918,1709250640355,-500.0,0.00021917,2]
[315897919,1709250640364,-500.0,0.00021917,2]
[315897920,1709250640374,-500.0,0.00021917,2]
[315897921,1709250640383,-500.0,0.00021917,2]
[315897922,1709250640393,-500.0,0.00021917,2]
[315897923,1709250640403,-500.0,0.00021917,2]
[315897924,1709250640412,-500.0,0.00021917,2]
[315897925,1709250640421,-897.7,0.00021917,2]
[315897926,1709250640430,-500.0,0.00021917,2]
[315897927,1709250640440,-500.0,0.00021917,2]
[315897928,1709250640449,-500.0,0.00021917,2]
[315897929,1709250640459,-500.0,0.00021917,2]
[315897930,1709250640468,-500.0,0.00021917,2]
[315897931,1709250640477,-774.52,0.00021917,2]
[315897932,1709250640487,-605.45,0.00021917,2]
[315897933,1709250640497,-500.0,0.00021917,2]
[315897934,1709250640506,-173.13,0.00021917,2]
[315897935,1709250640516,-500.0,0.00021917,2]
[315897936,1709250640525,-500.0,0.00021917,2]
[315897937,1709250640534,-500.0,0.00021917,2]
[315897938,1709250640544,-530.5,0.00021917,2]
[315897939,1709250640553,-500.0,0.00021917,2]
[315897940,1709250640564,-500.0,0.00021917,2]
[315897941,1709250640574,-500.0,0.00021917,2]
[315897942,1709250640583,-500.0,0.00021917,2]
[315897943,1709250640593,-500.0,0.00021917,2]
[315897944,1709250640603,-500.0,0.00021917,2]
[315897945,1709250640612,-1111.15,0.00021917,2]
[315897946,1709250640622,-500.0,0.00021917,2]
[315897947,1709250640631,-500.0,0.00021917,2]
[315897948,1709250640642,-500.0,0.00021917,2]
[315897949,1709250640652,-500.0,0.00021917,2]
[315897950,1709250640662,-640.18,0.00021917,2]
[315897951,1709250640671,-500.0,0.00021917,2]
[315897952,1709250640681,-500.0,0.00021917,2]
[315897953,1709250640690,-500.0,0.00021917,2]
[315897954,1709250640699,-705.25,0.00021917,2]
[315897955,1709250640709,-500.0,0.00021917,2]
[315897956,1709250640718,-775.95,0.00021917,2]
[315897957,1709250640727,-500.0,0.00021917,2]
[315897958,1709250640737,-537.38,0.00021917,2]
[315897959,1709250640746,-500.0,0.00021917,2]
[315897960,1709250640755,-500.0,0.00021917,2]
[315897961,1709250640765,-505.67,0.00021917,2]
[315897962,1709250640775,-500.0,0.00021917,2]
[315897963,1709250640784,-500.0,0.00021917,2]
[315897964,1709250640794,-2909.33,0.00021917,2]
[315897965,1709250640803,-500.0,0.00021917,2]
[315897966,1709250640813,-500.0,0.00021917,2]
[315897967,1709250640822,-510.17,0.00021917,2]
[315897968,1709250640832,-500.0,0.00021917,2]
[315897969,1709250640842,-508.65,0.00021917,2]
[315897970,1709250640852,-500.0,0.00021917,2]
[315897971,1709250640861,-500.0,0.00021917,2]
[315897972,1709250640871,-809.82,0.00021917,2]
[315897974,1709250640880,-500.0,0.00021917,2]
[315897976,1709250640889,-500.0,0.00021917,2]
[315897978,1709250640899,-1802.13,0.00021917,2]
[315897980,1709250640908,-945.16,0.00021917,2]
[315897982,1709250640918,-500.0,0.00021917,2]
[315897984,1709250640927,-862.37,0.00021917,2]
[315897986,1709250640936,-500.0,0.00021917,2]
[315897988,1709250640945,-500.0,0.00021917,2]
[315897990,1709250640954,-1303.5,0.00021917,2]
[315897991,1709250640962,-500.0,0.00021917,2]
[315897992,1709250640971,-500.0,0.00021917,2]
[315897993,1709250640981,-500.0,0.00021917,2]
[315897994,1709250640990,-500.0,0.00021917,2]
[315897995,1709250640999,-499.3579084,0.00021917,2]
[315897996,1709250641008,-1459.58,0.00021917,2]
[315897997,1709250641017,-500.0,0.00021917,2]
[315897998,1709250641026,-671.81,0.00021917,2]
[315897999,1709250641036,-500.0,0.00021917,2]
[315898000,1709250641046,-421.95367951,0.00021917,2]
[315898001,1709250641057,-624.7,0.00021917,2]
[315898002,1709250641067,-1032.29,0.00021917,2]
[315898003,1709250641076,-500.0,0.00021917,2]
[315898004,1709250641085,-500.0,0.00021917,2]
[315898005,1709250641098,-5983.47,0.00021917,2]
[315898006,1709250641107,-500.0,0.00021917,2]
[315898007,1709250641118,-500.0,0.00021917,2]
[315898008,1709250641127,-1266.38,0.00021917,2]
[315898009,1709250641137,-969.98,0.00021917,2]
[315898010,1709250641147,-500.0,0.00021917,2]
[315898011,1709250641158,-5451.77,0.00021917,2]
[315898012,1709250641169,-500.0,0.00021917,2]
[315898013,1709250641178,-500.0,0.00021917,2]
[315898014,1709250641186,-1477.28,0.00021917,2]
[315898015,1709250641196,-189.90595436,0.00021917,2]
[315898016,1709250641205,-680.91,0.00021917,2]
[315898017,1709250641214,-500.0,0.00021917,2]
[315898018,1709250641224,-500.0,0.00021917,2]
[315898019,1709250641233,-553.77,0.00021917,2]
[315898020,1709250641243,-593.52,0.00021917,2]
[315898021,1709250641252,-3300.51,0.00021917,2]
[315898022,1709250641261,-500.0,0.00021917,2]
[315898023,1709250641270,-1411.12,0.00021917,2]
[315898024,1709250641280,-500.0,0.00021917,2]
[315898025,1709250641289,-500.0,0.00021917,2]
[315898026,1709250641299,-500.0,0.00021917,2]
[315898027,1709250641309,-762.73,0.00021917,2]
[315898028,1709250641319,-500.0,0.00021917,2]
[315898029,1709250641331,-500.0,0.00021917,2]
[315898030,1709250641341,-500.0,0.00021917,2]
[315898031,1709250641352,-500.0,0.00021917,2]
[315898032,1709250641362,-662.25,0.00021917,2]
[315898033,1709250641371,-500.0,0.00021917,2]
[315898034,1709250641380,-500.0,0.00021917,2]
[315898035,1709250641390,-500.0,0.00021917,2]
[315898036,1709250641399,-500.0,0.00021917,2]
[315898037,1709250641408,-500.0,0.00021917,2]
[315898038,1709250641418,-568.79,0.00021917,2]
[315898039,1709250641427,-500.0,0.00021917,2]
[315898040,1709250641436,-300.0,0.00021917,2]
[315898041,1709250641446,-500.0,0.00021917,2]
[315898042,1709250641455,-300.0,0.00021917,2]
[315898043,1709250641464,-582.22,0.00021917,2]
[315898044,1709250641474,-500.0,0.00021917,2]
[315898045,1709250641483,-1872.92,0.00021917,2]
[315898046,1709250641494,-500.0,0.00021917,2]
[315898047,1709250641503,-8144.48,0.00021917,2]
[315898048,1709250641512,-561.62,0.00021917,2]
[315898049,1709250641522,-1724.15,0.00021917,2]
[315898050,1709250641531,-500.0,0.00021917,2]
[315898051,1709250641540,-500.0,0.00021917,2]
[315898052,1709250641549,-500.0,0.00021917,2]
[315898053,1709250641559,-500.0,0.00021917,2]
[315898054,1709250641568,-6546.27,0.00021917,2]
[315898055,1709250641578,-807.29,0.00021917,2]
[315898056,1709250641587,-1515.09,0.00021917,2]
[315898057,1709250641599,-500.0,0.00021917,2]
[315898058,1709250641608,-1200.72,0.00021917,2]
[315898059,1709250641618,-500.0,0.00021917,2]
[315898060,1709250641627,-500.0,0.00021917,2]
[315898061,1709250641637,-367.88170738,0.00021917,2]
[315898062,1709250641646,-500.0,0.00021917,2]
[315898063,1709250641656,-1201.11,0.00021917,2]
[315898064,1709250641665,-21743.21,0.00021917,2]
[315898065,1709250641674,-500.0,0.00021917,2]
[315898066,1709250641683,-500.0,0.00021917,2]
[315898067,1709250641693,-500.0,0.00021917,2]
[315898068,1709250641702,-361.87543172,0.00021917,2]
[315898069,1709250641711,-857.35,0.00021917,2]
[315898070,1709250641720,-564.0,0.00021917,2]
[315898071,1709250641730,-500.0,0.00021917,2]
[315898072,1709250641739,-500.0,0.00021917,2]
[315898073,1709250641748,-500.0,0.00021917,2]
[315898074,1709250641757,-500.0,0.00021917,2]
[315898075,1709250641766,-500.0,0.00021917,2]
[315898076,1709250641776,-872.66,0.00021917,2]
[315898077,1709250641785,-500.0,0.00021917,2]
[315898078,1709250641793,-784.88,0.00021917,2]
[315898079,1709250641802,-500.0,0.00021917,2]
[315898080,1709250641811,-608.01822205,0.00021917,2]
[315898081,1709250641821,-1073.83,0.00021917,2]
[315898082,1709250641831,-970.8,0.00021917,2]
[315898083,1709250641841,-1162.81,0.00021917,2]
[315898084,1709250641852,-1144.03,0.00021917,2]
[315898085,1709250641862,-1415.3,0.00021917,2]
[315898086,1709250641872,-500.0,0.00021917,2]
[315898087,1709250641882,-500.0,0.00021917,2]
[315898088,1709250641891,-500.0,0.00021917,2]
[315898089,1709250641900,-500.0,0.00021917,2]
[315898090,1709250641909,-500.0,0.00021917,2]
[315898091,1709250641919,-5021.47,0.00021917,2]
[315898092,1709250641929,-1790.92,0.00021917,2]
[315898093,1709250641938,-686.45,0.00021917,2]
[315898094,1709250641948,-500.0,0.00021917,2]
[315898095,1709250641957,-500.0,0.00021917,2]
[315898096,1709250641966,-703.32,0.00021917,2]
[315898097,1709250641975,-1000.08,0.00021917,2]
[315898098,1709250641984,-728.23,0.00021917,2]
[315898099,1709250641993,-507.54,0.00021917,2]
[315898100,1709250642002,-1236.45,0.00021917,2]
[315898101,1709250642012,-500.0,0.00021917,2]
[315898102,1709250642021,-2211.72,0.00021917,2]
[315898103,1709250642030,-500.0,0.00021917,2]
[315898104,1709250642039,-500.0,0.00021917,2]
[315898105,1709250642048,-500.0,0.00021917,2]
[315898106,1709250642059,-500.0,0.00021917,2]
[315898107,1709250642068,-500.0,0.00021917,2]
[315898108,1709250642078,-500.0,0.00021917,2]
[315898109,1709250642086,-500.0,0.00021917,2]
[315898110,1709250642097,-500.0,0.00021917,2]
[315898111,1709250642106,-528.1,0.00021917,2]
[315898112,1709250642115,-500.0,0.00021917,2]
[315898113,1709250642124,-500.0,0.00021917,2]
[315898114,1709250642133,-537.85,0.00021917,2]
[315898115,1709250642143,-500.0,0.00021917,2]
[315898116,1709250642152,-806.5,0.00021917,2]
[315898117,1709250642162,-562.62,0.00021917,2]
[315898118,1709250642171,-525.72,0.00021917,2]
[315898119,1709250642180,-500.0,0.00021917,2]
[315898120,1709250642189,-500.0,0.00021917,2]
[315898121,1709250642198,-500.0,0.00021917,2]
[315898122,1709250642208,-500.0,0.00021917,2]
[315898123,1709250642217,-226.36375737,0.00021917,2]
[315898124,1709250642447,-1373.87,0.00021917,2]
[315898125,1709250642507,-500.0,0.00021917,2]
[315898126,1709250642517,-500.0,0.00021917,2]
[315898127,1709250642527,-360.52201329,0.00021917,2]
[315898128,1709250642537,-1212.08,0.00021917,2]
[315898129,1709250642546,-500.0,0.00021917,2]
[315898130,1709250642555,-500.0,0.00021917,2]
[315898131,1709250642564,-655.11,0.00021917,2]
[315898132,1709250642574,-748.1,0.00021917,2]
[315898133,1709250642583,-1554.32,0.00021917,2]
[315898134,1709250642592,-500.0,0.00021917,2]
[315898135,1709250642602,-588.96,0.00021917,2]
[315898136,1709250642612,-500.0,0.00021917,2]
[315898137,1709250642622,-999.46,0.00021917,2]
[315898138,1709250642631,-500.0,0.00021917,2]
[315898139,1709250642640,-500.0,0.00021917,2]
[315898140,1709250642650,-650.71,0.00021917,2]
[315898141,1709250642659,-578.85,0.00021917,2]
[315898142,1709250642668,-500.0,0.00021917,2]
[315898143,1709250642678,-500.0,0.00021917,2]
[315898144,1709250642686,-500.0,0.00021917,2]
[315898145,1709250642695,-500.0,0.00021917,2]
[315898146,1709250642704,-750.59,0.00021917,2]
[315898147,1709250642714,-715.11,0.00021917,2]
[315898148,1709250642723,-524.38,0.00021917,2]
[315898149,1709250642732,-500.0,0.00021917,2]
[315898150,1709250642741,-3492.2,0.00021917,2]
[315898151,1709250642750,-500.0,0.00021917,2]
[315898152,1709250642760,-500.0,0.00021917,2]
[315898153,1709250642769,-500.0,0.00021917,2]
[315898154,1709250642778,-654.64,0.00021917,2]
[315898155,1709250642787,-5041.21,0.00021917,2]
[315898156,1709250642797,-523.66,0.00021917,2]
[315898157,1709250642806,-1768.73,0.00021917,2]
[315898158,1709250642816,-2392.38,0.00021917,2]
[315898159,1709250642825,-500.0,0.00021917,2]
[315898160,1709250642834,-519.1,0.00021917,2]
[315898161,1709250642844,-500.0,0.00021917,2]
[315898162,1709250642853,-1376.2,0.00021917,2]
[315898163,1709250642862,-500.0,0.00021917,2]
[315898164,1709250642872,-500.0,0.00021917,2]
[315898165,1709250642882,-500.0,0.00021917,2]
[315898166,1709250642891,-1165.2,0.00021917,2]
[315898167,1709250642900,-1102.92,0.00021917,2]
[315898168,1709250642910,-500.0,0.00021917,2]
[315898169,1709250642919,-500.0,0.00021917,2]
[315898170,1709250642928,-526.55,0.00021917,2]
[315898171,1709250642937,-1295.28,0.00021917,2]
[315898172,1709250642947,-1511.86,0.00021917,2]
[315898173,1709250642956,-500.0,0.00021917,2]
[315898174,1709250642965,-500.0,0.00021917,2]
[315898175,1709250642974,-500.0,0.00021917,2]
[315898176,1709250642983,-528.47,0.00021917,2]
[315898177,1709250642992,-500.0,0.00021917,2]
[315898178,1709250643002,-500.0,0.00021917,2]
[315898179,1709250643011,-566.97,0.00021917,2]
[315898180,1709250643020,-500.0,0.00021917,2]
[315898181,1709250643029,-2327.3,0.00021917,2]
[315898182,1709250643038,-500.0,0.00021917,2]
[315898183,1709250643047,-733.27,0.00021917,2]
[315898184,1709250643056,-500.0,0.00021917,2]
[315898185,1709250643065,-500.0,0.00021917,2]
[315898186,1709250643074,-600.71,0.00021917,2]
[315898187,1709250643083,-613.4,0.00021917,2]
[315898188,1709250643093,-840.1,0.00021917,2]
[315898189,1709250643103,-500.0,0.00021917,2]
[315898190,1709250643112,-500.0,0.00021917,2]
[315898191,1709250643121,-349.52847441,0.00021917,2]
[315898192,1709250643131,-500.0,0.00021917,2]
[315898193,1709250643139,-500.0,0.00021917,2]
[315898194,1709250643149,-500.0,0.00021917,2]
[315898195,1709250643158,-500.0,0.00021917,2]
[315898196,1709250643167,-646.89,0.00021917,2]
[315898197,1709250643177,-521.33,0.00021917,2]
[315898198,1709250643186,-688.01,0.00021917,2]
[315898199,1709250643195,-500.0,0.00021917,2]
[315898200,1709250643205,-534.56,0.00021917,2]
[315898201,1709250643214,-500.0,0.00021917,2]
[315898202,1709250643223,-1207.01,0.00021917,2]
[315898203,1709250643233,-500.0,0.00021917,2]
[315898204,1709250643242,-567.03,0.00021917,2]
[315898205,1709250643251,-516.05,0.00021917,2]
[315898206,1709250643261,-500.0,0.00021917,2]
[315898207,1709250643270,-941.78,0.00021917,2]
[315898208,1709250643280,-2238.53,0.00021917,2]
[315898209,1709250643289,-500.0,0.00021917,2]
[315898210,1709250643298,-641.19,0.00021917,2]
[315898211,1709250643308,-500.0,0.00021917,2]
[315898212,1709250643317,-500.0,0.00021917,2]
[315898213,1709250643328,-3887.75,0.00021917,2]
[315898214,1709250643337,-2118.64,0.00021917,2]
[315898215,1709250643347,-500.0,0.00021917,2]
[315898216,1709250643356,-1046.41,0.00021917,2]
[315898217,1709250643365,-500.0,0.00021917,2]
[315898218,1709250643375,-500.0,0.00021917,2]
[315898219,1709250643384,-500.0,0.00021917,2]
[315898220,1709250643393,-500.0,0.00021917,2]
[315898221,1709250643403,-500.0,0.00021917,2]
[315898222,1709250643413,-569.08,0.00021917,2]
[315898223,1709250643422,-925.72,0.00021917,2]
[315898224,1709250643431,-6297.17,0.00021917,2]
[315898225,1709250643441,-500.0,0.00021917,2]
[315898226,1709250643450,-551.92,0.00021917,2]
[315898227,1709250643459,-892.39,0.00021917,2]
[315898228,1709250643469,-554.0,0.00021917,2]
[315898229,1709250643478,-500.0,0.00021917,2]
[315898230,1709250643487,-500.0,0.00021917,2]
[315898231,1709250643496,-500.0,0.00021917,2]
[315898232,1709250643505,-1631.18,0.00021917,2]
[315898233,1709250643514,-500.0,0.00021917,2]
[315898234,1709250643523,-500.0,0.00021917,2]
[315898235,1709250643532,-782.37,0.00021917,2]
[315898236,1709250643541,-543.61,0.00021917,2]
[315898237,1709250643552,-500.0,0.00021917,2]
[315898238,1709250643563,-1225.5,0.00021917,2]
[315898239,1709250643573,-500.0,0.00021917,2]
[315898240,1709250643582,-8626.68,0.00021917,2]
[315898241,1709250643591,-2022.05,0.00021917,2]
[315898242,1709250643601,-500.0,0.00021917,2]
[315898243,1709250643610,-500.0,0.00021917,2]
[315898244,1709250643619,-500.0,0.00021917,2]
[315898245,1709250643628,-2545.11,0.00021917,2]
[315898246,1709250643637,-500.0,0.00021917,2]
[315898247,1709250643646,-500.0,0.00021917,2]
[315898248,1709250643655,-1252.49,0.00021917,2]
[315898249,1709250643665,-500.0,0.00021917,2]
[315898250,1709250643674,-500.0,0.00021917,2]
[315898251,1709250643683,-500.0,0.00021917,2]
[315898252,1709250643692,-6582.13,0.00021917,2]
[315898253,1709250643701,-3204.58,0.00021917,2]
[315898254,1709250643710,-500.0,0.00021917,2]
[315898255,1709250643720,-500.0,0.00021917,2]
[315898256,1709250643729,-812.39,0.00021917,2]
[315898257,1709250643738,-566.43,0.00021917,2]
[315898258,1709250643747,-5251.75,0.00021917,2]
[315898259,1709250643756,-558.01,0.00021917,2]
[315898260,1709250643767,-500.0,0.00021917,2]
[315898261,1709250643777,-500.0,0.00021917,2]
[315898262,1709250643786,-200.0,0.00021918,2]
[315898263,1709250643795,-164.23,0.00021918,2]
[315898264,1709250643804,-155.97,0.00021918,2]
[315898265,1709250643814,-155.0,0.00021918,2]
[315898266,1709250643824,-150.0,0.00021969,2]
[315898267,1709250643834,-408.69946908,0.00021994,2]
[315898268,1709250643844,-270.2511835,0.00022,2]
[315898269,1709250643854,-155.0,0.00022,2]
[315898270,1709250643864,-242.3928473,0.00022,4]
[315898271,1709250643874,-1000.0,0.00022,2]
[315898272,1709250643883,-202.0,0.0002201,2]
[315898273,1709250643892,-159.93787459,0.00022018,2]
[315898274,1709250643901,-159.93787459,0.0002202,2]
[315898275,1709250643910,-159.93787459,0.00022022,2]
[315898276,1709250643922,-159.93787459,0.00022024,2]
[315898277,1709250643964,-8430.12488519,0.00022024,2]
[315898278,1709250643974,-818.38514375,0.00022024,2]
[315898279,1709250643983,-294.58650041,0.00022024,2]
[315898280,1709250643993,-232.33406981,0.00022024,5]
[315898281,1709250644002,-334.57414795,0.00022024,2]
[315898282,1709250644012,-154.74392904,0.00022024,2]
[315898283,1709250644021,-182.79097916,0.00022032,2]
[315898284,1709250644031,-164.23,0.00022033,2]
[315898285,1709250644040,-171.71486309,0.00022044,2]
[315898286,1709250644049,-5000.0,0.00022107,2]
[315898287,1709250644058,-5000.0,0.00022107,2]
[315898288,1709250644068,-5000.0,0.00022107,2]
[315898289,1709250644077,-5000.0,0.00022107,2]
[315898290,1709250644086,-5000.0,0.00022108,2]
[315898291,1709250644096,-5000.0,0.00022108,2]
[315898292,1709250644106,-5000.0,0.00022109,2]
[315898293,1709250644115,-5000.0,0.00022109,2]
[315898294,1709250644123,-5000.0,0.0002211,2]
[315898295,1709250644134,-5000.0,0.0002211,2]
[315898296,1709250644143,-5000.0,0.00022111,2]
[315898297,1709250644152,-5000.0,0.00022111,2]
[315898298,1709250644162,-5000.0,0.00022111,2]
[315898299,1709250644171,-5000.0,0.00022112,2]
[315898300,1709250644181,-5000.0,0.00022112,2]
[315898301,1709250644191,-5000.0,0.00022113,2]
[315898302,1709250644201,-5000.0,0.00022115,2]
[315898303,1709250644211,-5000.0,0.00022115,2]
[315898304,1709250644221,-5000.0,0.00022115,2]
[315898305,1709250644231,-5000.0,0.00022116,2]
[315898306,1709250644241,-5000.0,0.00022116,2]
[315898307,1709250644251,-5000.0,0.00022116,2]
[315898308,1709250644260,-5000.0,0.00022117,2]
[315898309,1709250644269,-5000.0,0.00022117,2]
[315898310,1709250644278,-5000.0,0.00022117,2]
[315898311,1709250644288,-5000.0,0.00022118,2]
[315898312,1709250644296,-5000.0,0.00022118,2]
[315898313,1709250644306,-5000.0,0.00022118,2]
[315898314,1709250644315,-5000.0,0.00022118,2]
[315898315,1709250644326,-5000.0,0.00022119,2]
[315898316,1709250644335,-5000.0,0.00022119,2]
[315898317,1709250644347,-5000.0,0.00022119,2]
[315898318,1709250644356,-5000.0,0.0002212,2]
[315898319,1709250644364,-5000.0,0.0002212,2]
[315898320,1709250644374,-5000.0,0.00022121,2]
[315898321,1709250644383,-5000.0,0.00022121,2]
[315898322,1709250644393,-5000.0,0.00022121,2]
[315898323,1709250644404,-5000.0,0.00022121,2]
[315898324,1709250644414,-5000.0,0.00022122,2]
[315898325,1709250644423,-2261223.61802354,0.00022122,4]
[315898326,1709250644859,-155604.21685077,0.00022122,4]
[315898327,1709250644967,-849.07596231,0.00022122,4]
[315898328,1709250644979,-853.61735275,0.00022122,4]
[315898330,1709250645597,300.0,0.00012,7]
[315898331,1709250645735,-299.4028297,0.00022,7]
[315898332,1709250645768,-1700.5971703,0.00022,7]
[315898333,1709250645779,-29580.88706702,0.00022122,4]
[315898335,1709250646484,-3026.80185485,0.00021717,2]
[315898336,1709250647493,-897.0126949,0.00021584,2]
[315898337,1709250647509,-228.56838886,0.00021584,2]
[315898338,1709250647520,-1002.52161114,0.00021717,2]
[315898339,1709250647598,-1866.58391157,0.00021717,2]
[315898340,1709250647669,-1530.79739526,0.00021717,2]
[315898341,1709250647683,-831.83615779,0.00021717,2]